Cogmind - Beta 12 --- EXPLORER MODE // 2023.03.08 @ 21:29:10 Player: Mr. Q Result: Destroyed by G-47 Trooper with Particle Gun Performance ------------- Evolutions (2) 1000 Regions Visited (4) 800 Robots Destroyed (31) 155 Value Destroyed (1082) 1082 Prototype IDs (3) 60 Alien Tech Used (0) 0 Bonus (0) 0 TOTAL SCORE: 3097 Bonus ------- None Cogmind --------- Core Integrity 0/550 Matter 300/300 Energy 99/100 System Corruption 2% Temperature Cool (9) Movement Core (50) Location -8/Materials Parts ------- > --- POWER (1) -------- (None) > --- PROPULSION (3) --- (None) > --- UTILITY (5) ------ (None) > --- WEAPON (3) ------- (None) > --- INVENTORY (5) ---- Micro Nuclear Core Micro Nuclear Core Light Treads Large Storage Unit Improved Power Shielding Peak State ------------ > --- POWER ------------ Deuterium Engine > --- PROPULSION ------- Light Treads Light Treads Light Treads > --- UTILITY ---------- Large Storage Unit Seismic Detector Power Shielding Propulsion Shielding Hardened Medium Armor Plating > --- WEAPON ----------- Pulse Rifle Advanced Beam Cannon Ion Cannon > --- INVENTORY -------- Improved Ion Engine Micro Nuclear Core Micro Nuclear Core Light Treads Large Storage Unit Sensor Array Signal Interpreter Recoil Stabilizer Power Shielding Improved Power Shielding Ion Cannon Rocket Launcher [Rating: 24] Favorites ----------- Power Deuterium Engine Engine Deuterium Engine Propulsion Light Treads Treads Light Treads Utility Power Shielding Device Seismic Detector Storage Large Storage Unit Processor Targeting Computer Protection Power Shielding Weapon Pulse Rifle Energy Gun Pulse Rifle Energy Cannon Advanced Beam Cannon Ballistic Gun Assault Rifle Launcher Rocket Launcher Build | -11 -10 -9 -9 -8 ------- Run | Jun Mat Mat Min Mat Slots Evolved 5 | . 1 2 . 2 Power . | . . . . . Propulsion 1 | . . . . 1 Utility 3 | . 1 2 . . Weapon 1 | . . . . 1 Parts Attached 40 | 5 6 7 2 20 Power 4 | 1 . 1 . 2 Engine 4 | 1 . 1 . 2 Core . | . . . . . Reactor . | . . . . . Propulsion 5 | 2 . . . 3 Treads 5 | 2 . . . 3 Leg . | . . . . . Wheel . | . . . . . Hover . | . . . . . Flight . | . . . . . Utility 10 | 2 2 3 . 3 Device 2 | . 1 . . 1 Storage 1 | . . 1 . . Processor 1 | . 1 . . . Hackware . | . . . . . Protection 6 | 2 . 2 . 2 Artifact . | . . . . . Weapon 21 | . 4 3 2 12 Energy Gun 9 | . 1 3 2 3 Energy Cannon 5 | . . . . 5 Ballistic Gun 3 | . 3 . . . Ballistic Cannon . | . . . . . Launcher 4 | . . . . 4 Special Weapon . | . . . . . Impact Weapon . | . . . . . Slashing Weapon . | . . . . . Piercing Weapon . | . . . . . Special Melee Weapon . | . . . . . Unidentified Prototypes 1 | . . . . 1 Parts Lost 13 | . . . . 13 Power . | . . . . . Propulsion 3 | . . . . 3 Utility 6 | . . . . 6 Weapon 4 | . . . . 4 Highest Loss Streak 8 | . . . . 8 To Critical Strikes . | . . . . . Average Slot Usage (%) 88 | . 88 97 91 82 Engine 8 | . 12 10 10 6 Treads 20 | . 25 20 20 20 Device 7 | . 3 10 10 7 Storage 7 | . . 9 10 6 Protection 24 | . 25 28 30 19 Energy Gun 10 | . 5 18 11 8 Energy Cannon 3 | . . . . 7 Ballistic Gun 2 | . 14 1 . . Launcher 1 | . . . . 4 Naked Turns 66 | . . . . 66 Heaviest Build 53 | 7 13 46 46 53 Greatest Support 60 | 40 40 40 40 60 Greatest Overweight (x) 12 | 2 . 1 1 12 Average Overweight (x) . | . . . . . Largest Inventory Capacity 15 | 5 5 15 15 15 Average Capacity 12 | 5 5 14 15 13 Most Carried 13 | 5 5 10 13 13 Average Carried 8 | 3 4 7 11 10 Final Capacity 15 | 5 5 15 15 5 Final Carried 13 | 5 5 10 13 5 Class Distribution -------------------- 83% | Hacker-Mutant 16% | Hacker-Tank Dominant Class ---------------- Hacker-Mutant | -10/Materials Hacker-Mutant | -9/Materials Hacker-Mutant | -9/Mines Hacker-Mutant | -8/Materials Resources | -11 -10 -9 -9 -8 ----------- Run | Jun Mat Mat Min Mat Matter Collected 768 | 218 125 103 20 302 Remotely . | . . . . . Salvage Created 1050 | . 144 284 29 593 Parts 69 | . 6 19 5 39 Haulers Intercepted . | . . . . . Recyclers Shooed 1 | . . . . 1 Parts Field Recycled . | . . . . . Retrieved Matter . | . . . . . Parts Self-Destructed . | . . . . . Prevented . | . . . . . Kills | -11 -10 -9 -9 -8 ------- Run | Jun Mat Mat Min Mat Combat Hostiles Destroyed 27 | . 3 6 2 16 Melee 1 | . . . . 1 Guns 15 | . 3 6 2 4 Cannons 6 | . . . . 6 AOE 5 | . . . . 5 Classes Destroyed 6 | . 1 2 1 2 Builder 2 | . . . . 2 Watcher 2 | . . 1 . 1 Swarmer 5 | . . . 2 3 Grunt 13 | . 3 4 . 6 Sentry 8 | . . 2 . 6 Hunter 1 | . . . . 1 Best Kill Streak 8 | . 2 3 2 8 Combat Bots Only 7 | . 2 3 2 7 Max Kills in Single Turn 3 | . 1 2 1 3 Gunslinging 1 | . . 1 . . Exploded 2 | . . . . 2 Melee 1 | . . . . 1 Uniques/NPCs Destroyed . | . . . . . Combat | -11 -10 -9 -9 -8 -------- Run | Jun Mat Mat Min Mat Damage Taken 2262 | . 198 211 40 1813 Core 614 | . 35 16 5 558 Absorbed by Shields . | . . . . . Redirected to Shielding 112 | . 31 11 2 68 Regen/Repaired (Parts) 175 | . . 175 . . Core Remaining (%) 93 | 100 86 . 94 . Volleys Fired 65 | . 19 10 3 33 Largest 3 | . 2 2 2 3 Hottest 191 | . 85 128 121 191 Shots Fired 126 | . 29 20 6 71 Gun 80 | . 29 20 6 25 Cannon 32 | . . . . 32 Launcher 14 | . . . . 14 Special . | . . . . . Kinetic 28 | . 28 . . . Thermal 84 | . 1 20 6 57 Explosive 14 | . . . . 14 Electromagnetic . | . . . . . Robot Hit Streak 27 | . 27 8 2 27 Robot Miss Streak 2 | . 2 1 1 2 Penetration Max . | . . . . . Secondary Targets 3 | . 1 2 . . Max Gunslinging Chain 1 | . 1 1 . . Shots Hit Robots 94 | . 27 15 3 49 Core Hits 53 | . 9 9 2 33 Critical Kills . | . . . . . Critical Parts Destroyed . | . . . . . Critical Strikes . | . . . . . Melee Attacks . | . . . . . Impact . | . . . . . Slashing . | . . . . . Piercing . | . . . . . Sneak Attacks . | . . . . . Combat Hostiles . | . . . . . Follow-up Attacks . | . . . . . Damage Inflicted 2328 | . 299 252 50 1727 Guns 953 | . 296 244 45 368 Cannons 521 | . . . . 521 Explosions 770 | . . . . 770 Melee . | . . . . . Ramming 84 | . 3 8 5 68 Kinetic 296 | . 296 . . . Thermal 1178 | . . 244 45 889 Explosive 770 | . . . . 770 Electromagnetic . | . . . . . Impact . | . . . . . Slashing . | . . . . . Piercing . | . . . . . Highest Corruption 4 | . 4 . . 2 Average Corruption 2 | . 4 . . 2 Corruption Purged . | . . . . . Corruption Blocked . | . . . . . Effects 1 | . . . . 1 Data Loss (minor) 1 | . . . . 1 Overload Shots . | . . . . . Overflow Damage 44 | . . . . 44 Projectiles 2 | . . . . 2 Explosions 42 | . . . . 42 Melee . | . . . . . Knockbacks . | . . . . . Impact . | . . . . . Kinetic . | . . . . . Secondary . | . . . . . Self-Inflicted Damage 131 | . 3 . . 128 Shots 5 | . . . . 5 Rammed 19 | . . 4 1 14 Targets Rammed 20 | . . 4 1 15 Kicked . | . . . . . Crushed 1 | . . . . 1 Highest Temperature 521 | . 39 345 138 521 Average Temperature 141 | . 23 122 60 172 Received Heat Transfer 1479 | . 201 198 . 1080 Effects 15 | . . 3 . 12 Shutdowns 3 | . . 1 . 2 Energy Bleed 1 | . . . . 1 Interference 5 | . . 2 . 3 Short Circuit 2 | . . . . 2 Damage (minor) 1 | . . . . 1 Damage (major) 3 | . . . . 3 Siege Activations . | . . . . . Robots Corrupted . | . . . . . Combat Hostiles . | . . . . . Parts Fried . | . . . . . Impact Corruptions . | . . . . . Robots Melted . | . . . . . Combat Hostiles . | . . . . . Parts Melted 3 | . . . . 3 Heat Transferred 2368 | . . 555 111 1702 Parts Sabotaged . | . . . . . Parts Stolen . | . . . . . Parts Stripped . | . . . . . Power Chain Reactions . | . . . . . Missiles Intercepted . | . . . . . Alert | -11 -10 -9 -9 -8 ------- Run | Jun Mat Mat Min Mat Peak Influence 210 | . 92 210 69 205 Initial 4 | . . . 4 . Average 66 | . 49 58 32 104 Maximum Alert Level 1 | . . 1 . 1 Low Security (%) 97 | 100 100 86 100 99 Level 1 2 | . . 13 . . Level 2 . | . . . . . Level 3 . | . . . . . Level 4 . | . . . . . Level 5 . | . . . . . High Security . | . . . . . Max Security . | . . . . . Squads Dispatched 5 | . . . . 5 Investigation . | . . . . . Extermination . | . . . . . Reinforcement 3 | . . . . 3 Assault . | . . . . . Garrison 2 | . . . . 2 Intercept . | . . . . . Searches Triggered . | . . . . . Construction Impeded . | . . . . . Haulers Reinforced . | . . . . . Active Scanning Responses . | . . . . . Cargo Convoy Interrupts . | . . . . . Stealth | -11 -10 -9 -9 -8 --------- Run | Jun Mat Mat Min Mat Distress Signals 2 | . . . . 2 Communications Jammed . | . . . . . Distress Signals . | . . . . . Times Spotted 52 | . 6 13 3 30 Peak Tracking Total 11 | . 2 4 2 11 Tactical Retreats 2 | . . . 1 1 Traps | -11 -10 -9 -9 -8 ------- Run | Jun Mat Mat Min Mat Traps Triggered . | . . . . . Indirectly . | . . . . . Trap Hack Attempts . | . . . . . Triggered . | . . . . . Disarmed 6 | . 6 . . . Reprogrammed . | . . . . . Reused . | . . . . . Traps Extracted . | . . . . . Installed . | . . . . . Triggered . | . . . . . Machines | -11 -10 -9 -9 -8 ---------- Run | Jun Mat Mat Min Mat Machines Disabled 3 | . . . . 3 Max in Single Turn 2 | . . . . 2 Garrison Access 1 | . . . . 1 Machines Repaired . | . . . . . Machines Sabotaged . | . . . . . Overloaded Fab Kills . | . . . . . Hacking | -11 -10 -9 -9 -8 --------- Run | Jun Mat Mat Min Mat Machines Accessed 9 | . 3 4 . 2 Terminals 6 | . 3 2 . 1 Fabricators . | . . . . . Repair Stations 1 | . . 1 . . Recycling Units 1 | . . 1 . . Scanalyzers . | . . . . . Garrison Access 1 | . . . . 1 Total Hacks 25 | . 10 11 . 4 Successful 15 | . 7 6 . 2 Failed 10 | . 3 5 . 2 Catastrophic . | . . . . . Database Lockouts . | . . . . . Manual . | . . . . . Terminals 17 | . 10 4 . 3 Fabricators . | . . . . . Repair Stations 6 | . . 6 . . Recycling Units 1 | . . 1 . . Scanalyzers . | . . . . . Garrison Access 1 | . . . . 1 Terminal Hacks 10 | . 7 2 . 1 Record 1 | . 1 . . . Robot Analysis 1 | . 1 . . . Prototype ID Bank 1 | . . 1 . . Level Access Points 1 | . . . . 1 Alert Level 1 | . 1 . . . Unreport Threat 1 | . 1 . . . Locate Traps 2 | . 1 1 . . Disarm Traps 1 | . 1 . . . Surveillance Status 1 | . 1 . . . Fabricator Hacks . | . . . . . Repair Station Hacks 3 | . . 3 . . Scan Component 2 | . . 2 . . Repair 1 | . . 1 . . Recycling Unit Hacks 1 | . . 1 . . Retrieve Components 1 | . . 1 . . Scanalyzer . | . . . . . Garrison Access Hacks 1 | . . . . 1 Seal Access 1 | . . . . 1 Unauthorized Hacks . | . . . . . Terminals . | . . . . . Fabricators . | . . . . . Repair Stations . | . . . . . Recycling Units . | . . . . . Scanalyzers . | . . . . . Garrison Access . | . . . . . Data Cores Recovered . | . . . . . Used . | . . . . . Hacking Detections 7 | . 3 3 . 1 Full Trace Events . | . . . . . Feedback Events . | . . . . . Feedback Blocked . | . . . . . Robot Schematics Acquired . | . . . . . Robots Built . | . . . . . Authchips . | . . . . . Time . | . . . . . Total Robot Build Rating . | . . . . . Part Schematics Acquired . | . . . . . Parts Built . | . . . . . Authchips . | . . . . . Time . | . . . . . Total Part Build Rating . | . . . . . Parts Repaired 1 | . . 1 . . Time 19 | . . 19 . . Parts Recycled . | . . . . . Recycled Matter . | . . . . . Retrieved Matter . | . . . . . Retrieved Components 3 | . . 3 . . Parts Scanalyzed . | . . . . . Part Schematics Acquired . | . . . . . Parts Damaged . | . . . . . Bothacking | -11 -10 -9 -9 -8 ------------ Run | Jun Mat Mat Min Mat Used RIF Installer . | . . . . . Robots Hacked . | . . . . . Non-combat . | . . . . . Combat . | . . . . . Robot Hacks Applied . | . . . . . Relay Couplers Released . | . . . . . Fabnet Peak Effective % . | . . . . . Robots Rewired . | . . . . . Allies Hacked . | . . . . . Hacks Repelled . | . . . . . Allies | -11 -10 -9 -9 -8 -------- Run | Jun Mat Mat Min Mat Total Allies . | . . . . . Largest Group . | . . . . . Highest-Rated Group . | . . . . . Highest-Rated Ally . | . . . . . Total Orders . | . . . . . Ally Attacks . | . . . . . Total Damage . | . . . . . Kills . | . . . . . Allies Corrupted . | . . . . . Allies Melted . | . . . . . Intel | -11 -10 -9 -9 -8 ------- Run | Jun Mat Mat Min Mat Robot Analysis Total 1 | . 1 . . . Derelict Logs Recovered . | . . . . . Drone Launches . | . . . . . Drone Recoveries . | . . . . . Exploration | -11 -10 -9 -9 -8 ------------- Run | Jun Mat Mat Min Mat Turns Passed 2577 | 120 390 467 573 1027 Spaces Moved 1336 | 86 200 164 283 603 Core 235 | 33 . . . 202 Treads 1101 | 53 200 164 283 401 Legs . | . . . . . Wheels . | . . . . . Hover . | . . . . . Flight . | . . . . . Fastest Speed 50 | 50 160 160 160 50 Average Speed 160 | 125 160 222 196 131 Slowest Speed 650 | 160 160 240 240 650 Overloaded Moves . | . . . . . Propulsion Burnouts . | . . . . . Robots Hopped . | . . . . . Cave-ins Triggered 1 | . . . . 1 Exploration Rate (%) 34 | 4 31 18 67 50 Regions Visited 4 Branch Regions 1 Pre-discovered Areas . | . . . . . Known Exits Taken 4 | 1 1 1 1 . Unknown Exits Taken . | . . . . . Scrap Searched . | . . . . . Spaces Dug 71 | . . . . 71 Terrain Destroyed 161 | . . . . 161 Melee . | . . . . . Projectile 1 | . . . . 1 AOE 160 | . . . . 160 Terrain Rammed 1 | . 1 . . . Walls Destroyed . | . . . . . Machines Disabled . | . . . . . Actions | -11 -10 -9 -9 -8 --------- Run | Jun Mat Mat Min Mat Total 1644 | 95 244 242 296 767 Wait 127 | . 7 46 3 71 Move 1331 | 85 199 163 282 602 Hop . | . . . . . Pick Up 30 | 5 6 7 1 11 Fast Attach 12 | 5 3 3 . 1 Attach 21 | . 3 3 2 13 Detach 11 | . . 3 4 4 Swap 7 | . . 1 . 6 Drop 18 | . 6 2 . 10 Fire 65 | . 19 10 3 33 Melee . | . . . . . Ram 11 | . 1 . . 10 Kick . | . . . . . Crush 10 | . . 4 1 5 Escape Stasis 1 | . . . . 1 Rewire . | . . . . . Trap . | . . . . . Miscellaneous . | . . . . . Route ------- -11/Junkyard -10/Materials -9/Materials -9/Mines -8/Materials (discovered 3 exits: *Fac x3) History --------- Turn | Location | Event 6 | -11/Junkyard | Identified exit to Materials 6 | -11/Junkyard | Discovered exit to Materials (range 15) 121 | -11/Junkyard | Entered Materials 121 | -10/Materials | Evolved 1 slot: Utility x1 305 | -10/Materials | Build established: Hacker-Mutant 422 | -10/Materials | Identified exit to Materials 422 | -10/Materials | Discovered exit to Materials (range 16) 511 | -10/Materials | Entered another Materials area 511 | -9/Materials | Evolved 2 slots: Utility x2 739 | -9/Materials | Repaired Hrd. Medium Armor Plating 892 | -9/Materials | Identified exit to Mines 892 | -9/Materials | Discovered exit to Mines (range 10) 978 | -9/Materials | Entered Mines 985 | -9/Mines | Received a Rocket Launcher from a helpful Derelict 1484 | -9/Mines | Identified exit to Materials 1484 | -9/Mines | Discovered exit to Materials (range 13) 1551 | -9/Mines | Entered Materials 1551 | -8/Materials | Evolved 2 slots: Propulsion x1, Weapon x1 1832 | -8/Materials | Garrison activated, responded to threat 1988 | -8/Materials | Destroyed 7 combat bots 2070 | -8/Materials | Identified exit to Factory 2445 | -8/Materials | Lost 8 parts (3n2u3w) 2516 | -8/Materials | Crushed by falling debris 2517 | -8/Materials | Core integrity fell below 50% 2552 | -8/Materials | Core integrity fell below 20% 2578 | -8/Materials | Destroyed by G-47 Trooper with Particle Gun Last Messages --------------- 02526_ Acquired Broken Lgt. Treads. 02526_ R-06 Scavenger collects Sensor Array. 02530_ R-06 Scavenger collects Beam Rifle. 02549_ Slammed into R-06 Scavenger. 02551_ O-16 Technician distress signal alerts nearby ally. 02551_ O-16 Technician: "IFF HANDSHAKE FAILED. SECURING TERMINAL." 02552_ Slammed into T-07 Excavator. 02554_ Slammed into K-01 Serf. 02555_ Slammed into Y-45 Defender. 02557_ Destabilizing: System corrupted (+2). 02558_ Slammed into Y-45 Defender. 02558_ O-16 Technician uses terminal to summon reinforcements. 02558_ ALERT: Hostiles spotted, dispatching reinforcements to Terminal M011. 02558_ O-16 Technician locks terminal. 02559_ Slammed into Y-45 Defender. 02561_ ALERT: Hostiles spotted, dispatching reinforcements to Terminal M004. 02562_ System corrupted: Component data lost. 02575_ W-25 Informer distress signal alerts nearby ally. Map ----- +----------------------------------------------------+ | ????????????????????????????????????????????????? | | ????????????????????????????????????????????????? | | ????????????????????????????????????????????????? | | ????????????????????????????????????????????????? | | ????????????????????????????????????????????????? | | ????????????????????????????????????????????????? | | ????????????????????????????????????????????????? | | ??????????????????????????????????????????????##? | | ?????????????????????????????????????? ?? ? | | ?????????????????????????# ????????+ ? ? | | ?????????????????????????# ????????# "" # | | ?????????????????????????# #???????# Y" # | | ?????????????????????????# #???????# "" # | | ?????????????????????????# #???????# # | | ?????????????????????????# #???????# + | | ?????????????????????????# #???????# *!* # | | ?????????????????????????# #???????# ^ !** # | | ?????????????????????????# #???????# !** # | | ?????????????????????????# #???????# # | | ?????????????????????????+ #???????# # | | ?????????????????????????# #???????# """ # | | ?????????????????????????# ######### """ # | | ?????????????????????????# rk """ # | | ?????????????????####????# w # | | ????????????????## ### # | | ??????????# @ ##########+##### # | | ??????????# < Y a g #??????????????# # | | ??????????# #??????????????# # | | ??????????# ###### ### #??????????????# # | | ?????????????????# ###??# #??????????????# # | | ?????????????????# ??????# #??????????????# # | | ?????????????????#???????# #?????????????## # | | ????????????????????????? ?????????????# %%% | | ????????????????????????? ????? | | ????????????????????????# | | ????????????????????????# | | ????????????????????????# ########T##### | | ????????????????????????###+###??????#?????## # | | ????????????????????????????????????????????# # | | ????????????????????????????????????????????# # | | ????????????????????????????????????????????# # | | ????????????????????????????????????????????# # | | ????????????????????????????????????????????# # | | ????????????????????????????????????????????# # | | ???????????????????????????????????????????? # | | ???????????????????????????????????????????? # | | ???????????????????????????????????????????? # | | ???????????????????????????????????????????? ? | | ????????????????????????????????????????????????? | | ????????????????????????????????????????????????? | +----------------------------------------------------+ Best States ------------- Heat Dissipation 31 Energy Generation 14 Energy Capacity 275 Matter Stores 300 Matter Capacity 300 Sight Range 16 Terrain Scan Density 10 Armor Coverage 225 Resistance: KI 35 Resistance: TH 35 Resistance: EX 35 Resistance: EM 35 Resistance: I 35 Resistance: S 35 Resistance: P 35 Power Shielding 66 Propulsion Shielding 33 Evasion (%) 50 Targeting Accuracy 5 Recoil Reduction 3 Offensive Hacking 20 Item Schematics ----------------- None Robot Schematics ------------------ None Fabricated ------------ Nothing Alien Tech Used ----------------- None Achievements -------------- None Challenges ------------ None Game ------ Seed HardenedGrapheneStick Manual? 0 Play Time 00:33:33 Cumulative 18.8 hours Start 2023.03.08 @ 20:56:00 End 2023.03.08 @ 21:29:10 Sessions 1 Manual Loads 0 Difficulty Explorer Special Mode None Game No. 18 Rogue 10 Adventurer 2 Explorer 6 Win Type - Total 0 Types 0/0/0/0/0/0/0/0/0 Lore% 11 Gallery% 26 Achievement% 21 Wizard Run 0 Options --------- ASCII 0 Keyboard 0 Movement Numpad Keybinds 0 Fullscreen 1 Font 24/Smallcaps Map View 76x50 Tactical HUD 1 Map Filters NONE Filters NONE Steam 1 RUN: 0f219ccd-f7f1-4241-9402-057a5481efa3